Cogmind - Beta 12 @@@ ROGUE MODE // 2023.03.24 @ 21:41:41 Player: aperiodic Result: Destroyed by S-10 Pest with Light Assault Rifle Performance ------------- Evolutions (0) 0 Regions Visited (2) 400 Robots Destroyed (21) 105 Value Destroyed (424) 424 Prototype IDs (2) 40 Alien Tech Used (0) 0 Bonus (-243) -243 TOTAL SCORE: 726 Bonus ------- Friendly Fire -243 Cogmind --------- Core Integrity 0/250 Matter 294/300 Energy 79/100 System Corruption 0% Temperature Cool (90) Movement Rolling (80) Location -10/Mines Parts ------- > --- POWER (1) -------- (None) > --- PROPULSION (2) --- Wheel > --- UTILITY (2) ------ Small Storage Unit Seismic Detector > --- WEAPON (2) ------- (None) > --- INVENTORY (8) ---- Light Treads Light Treads Heat Sink Mining Laser Stasis Trap (100%) Stasis Trap (100%) Stasis Trap (100%) Peak State ------------ > --- POWER ------------ Light Nuclear Core > --- PROPULSION ------- Compact Wheel Compact Wheel > --- UTILITY ---------- Small Storage Unit Seismic Detector > --- WEAPON ----------- Medium Laser Small Laser > --- INVENTORY -------- Light Ion Engine Light Treads Light Treads Heat Sink Light Cannon Grenade Launcher Mining Laser [Rating: 9] Favorites ----------- Power Ion Engine Engine Ion Engine Power Core Light Nuclear Core Propulsion Compact Wheel Treads Light Treads Wheel Compact Wheel Utility Small Storage Unit Device Seismic Detector Storage Small Storage Unit Weapon Small Laser Energy Gun Small Laser Ballistic Gun Light Assault Rifle Ballistic Cannon Light Cannon Launcher Grenade Launcher Build | -11 -10 -10 ------- Run | Jun Mat Min Slots Evolved . | . . . Power . | . . . Propulsion . | . . . Utility . | . . . Weapon . | . . . Parts Attached 24 | 8 6 10 Power 6 | 2 . 4 Engine 5 | 2 . 3 Core 1 | . . 1 Reactor . | . . . Propulsion 9 | 2 4 3 Treads 2 | . 2 . Leg . | . . . Wheel 7 | 2 2 3 Hover . | . . . Flight . | . . . Utility 2 | 2 . . Device 1 | 1 . . Storage 1 | 1 . . Processor . | . . . Hackware . | . . . Protection . | . . . Artifact . | . . . Weapon 7 | 2 2 3 Energy Gun 3 | 1 1 1 Energy Cannon . | . . . Ballistic Gun 1 | 1 . . Ballistic Cannon 2 | . 1 1 Launcher 1 | . . 1 Special Weapon . | . . . Impact Weapon . | . . . Slashing Weapon . | . . . Piercing Weapon . | . . . Special Melee Weapon . | . . . Unidentified Prototypes . | . . . Parts Lost 7 | . . 7 Power 1 | . . 1 Propulsion 3 | . . 3 Utility . | . . . Weapon 3 | . . 3 Highest Loss Streak 4 | . . 4 To Critical Strikes . | . . . Average Slot Usage (%) 96 | . 100 94 Engine 13 | . 14 13 Treads 3 | . 11 . Wheel 21 | . 16 23 Device 14 | . 14 14 Storage 14 | . 14 14 Energy Gun 18 | . 14 19 Ballistic Gun 2 | . 8 . Ballistic Cannon 6 | . 5 7 Naked Turns . | . . . Heaviest Build 16 | 13 15 16 Greatest Support 40 | 32 40 32 Greatest Overweight (x) . | . . . Average Overweight (x) . | . . . Largest Inventory Capacity 8 | 8 8 8 Average Capacity 7 | 7 8 8 Most Carried 8 | 6 8 8 Average Carried 7 | 3 7 7 Final Capacity 8 | 8 8 8 Final Carried 8 | 6 8 7 Class Distribution -------------------- 100% | Mutant Dominant Class ---------------- Mutant | -10/Materials Mutant | -10/Mines Resources | -11 -10 -10 ----------- Run | Jun Mat Min Matter Collected 599 | 287 59 253 Remotely . | . . . Salvage Created 555 | 78 215 262 Parts 29 | 6 11 12 Haulers Intercepted . | . . . Recyclers Shooed . | . . . Parts Field Recycled . | . . . Retrieved Matter . | . . . Parts Self-Destructed . | . . . Prevented . | . . . Kills | -11 -10 -10 ------- Run | Jun Mat Min Combat Hostiles Destroyed 14 | . 7 7 Guns 11 | . 7 4 Cannons 1 | . . 1 AOE 1 | . . 1 Classes Destroyed 7 | 2 3 2 Worker 2 | . . 2 Tunneler 1 | 1 . . Recycler 3 | 1 . 2 Operator 1 | . 1 . Swarmer 5 | . 3 2 Grunt 7 | . 4 3 Demolisher 1 | . . 1 Best Kill Streak 6 | 1 6 3 Combat Bots Only 6 | . 6 3 Max Kills in Single Turn 1 | 1 1 1 Gunslinging . | . . . Exploded 1 | . . 1 Melee . | . . . Uniques/NPCs Destroyed 1 | . . 1 YI-UF0 (-10/Mines) Combat | -11 -10 -10 -------- Run | Jun Mat Min Damage Taken 1065 | . 255 810 Core 259 | . 42 217 Absorbed by Shields . | . . . Core Remaining (%) 100 | 100 . . Volleys Fired 92 | 7 33 52 Largest 2 | 2 2 2 Hottest 90 | 60 75 90 Shots Fired 165 | 14 65 86 Gun 130 | 14 61 55 Cannon 31 | . 4 27 Launcher 4 | . . 4 Special . | . . . Kinetic 67 | 7 33 27 Thermal 94 | 7 32 55 Explosive 4 | . . 4 Electromagnetic . | . . . Robot Hit Streak 11 | 3 11 11 Robot Miss Streak 6 | 5 5 6 Penetration Max . | . . . Secondary Targets . | . . . Shots Hit Robots 95 | 7 39 49 Core Hits 36 | 4 15 17 Critical Kills 1 | . 1 . Critical Parts Destroyed 1 | . 1 . Critical Strikes 6 | . 2 4 Burn 4 | . . 4 Destroy 2 | . 2 . Melee Attacks . | . . . Impact . | . . . Slashing . | . . . Piercing . | . . . Sneak Attacks . | . . . Combat Hostiles . | . . . Follow-up Attacks . | . . . Damage Inflicted 1310 | 74 391 845 Guns 825 | 74 361 390 Cannons 323 | . 30 293 Explosions 162 | . . 162 Melee . | . . . Ramming . | . . . Kinetic 511 | 41 177 293 Thermal 637 | 33 214 390 Explosive 162 | . . 162 Electromagnetic . | . . . Impact . | . . . Slashing . | . . . Piercing . | . . . Highest Corruption . | . . . Average Corruption . | . . . Corruption Purged . | . . . Corruption Blocked . | . . . Overload Shots . | . . . Overflow Damage 13 | . 5 8 Projectiles 13 | . 5 8 Explosions . | . . . Melee . | . . . Knockbacks 8 | . 1 7 Impact . | . . . Kinetic 8 | . 1 7 Secondary . | . . . Self-Inflicted Damage 34 | . . 34 Shots 1 | . . 1 Rammed . | . . . Targets Rammed . | . . . Kicked . | . . . Crushed . | . . . Highest Temperature 303 | 40 191 303 Average Temperature 74 | 20 59 88 Received Heat Transfer 276 | . 132 144 Siege Activations . | . . . Robots Corrupted . | . . . Combat Hostiles . | . . . Parts Fried . | . . . Impact Corruptions . | . . . Robots Melted 1 | . . 1 Combat Hostiles 1 | . . 1 Parts Melted 1 | . . 1 Heat Transferred 1958 | 75 475 1408 Parts Sabotaged . | . . . Parts Stolen . | . . . Parts Stripped . | . . . Power Chain Reactions . | . . . Missiles Intercepted . | . . . Alert | -11 -10 -10 ------- Run | Jun Mat Min Peak Influence 226 | 10 226 167 Initial 87 | . 6 87 Average 86 | 3 146 72 Maximum Alert Level 1 | . 1 . Low Security (%) 91 | 100 68 100 Level 1 8 | . 31 . Level 2 . | . . . Level 3 . | . . . Level 4 . | . . . Level 5 . | . . . High Security . | . . . Max Security . | . . . Squads Dispatched 2 | . 2 . Investigation . | . . . Extermination . | . . . Reinforcement 2 | . 2 . Assault . | . . . Garrison . | . . . Intercept . | . . . Searches Triggered . | . . . Construction Impeded . | . . . Haulers Reinforced . | . . . Active Scanning Responses . | . . . Cargo Convoy Interrupts . | . . . Stealth | -11 -10 -10 --------- Run | Jun Mat Min Distress Signals . | . . . Communications Jammed . | . . . Distress Signals . | . . . Times Spotted 28 | . 13 15 Peak Tracking Total 6 | . 6 5 Tactical Retreats 2 | . . 2 Traps | -11 -10 -10 ------- Run | Jun Mat Min Traps Triggered . | . . . Indirectly . | . . . Trap Hack Attempts . | . . . Triggered . | . . . Disarmed . | . . . Reprogrammed . | . . . Reused . | . . . Traps Extracted . | . . . Installed 1 | . . 1 Triggered . | . . . Most Traps Carried 4 | . . 4 Machines | -11 -10 -10 ---------- Run | Jun Mat Min Machines Disabled . | . . . Max in Single Turn . | . . . Machines Repaired . | . . . Machines Sabotaged . | . . . Overloaded Fab Kills . | . . . Hacking | -11 -10 -10 --------- Run | Jun Mat Min Machines Accessed 3 | . 3 . Terminals 3 | . 3 . Fabricators . | . . . Repair Stations . | . . . Recycling Units . | . . . Scanalyzers . | . . . Garrison Access . | . . . Total Hacks 8 | . 8 . Successful 2 | . 2 . Failed 6 | . 6 . Catastrophic . | . . . Database Lockouts . | . . . Manual 5 | . 5 . Terminals 8 | . 8 . Fabricators . | . . . Repair Stations . | . . . Recycling Units . | . . . Scanalyzers . | . . . Garrison Access . | . . . Terminal Hacks 2 | . 2 . Prototype ID Bank 1 | . 1 . Terminal Index 1 | . 1 . Fabricator Hacks . | . . . Repair Station Hacks . | . . . Recycling Unit Hacks . | . . . Scanalyzer . | . . . Garrison Access Hacks . | . . . Unauthorized Hacks . | . . . Terminals . | . . . Fabricators . | . . . Repair Stations . | . . . Recycling Units . | . . . Scanalyzers . | . . . Garrison Access . | . . . Data Cores Recovered . | . . . Used . | . . . Hacking Detections 3 | . 3 . Full Trace Events . | . . . Feedback Events . | . . . Feedback Blocked . | . . . Robot Schematics Acquired . | . . . Robots Built . | . . . Authchips . | . . . Time . | . . . Total Robot Build Rating . | . . . Part Schematics Acquired . | . . . Parts Built . | . . . Authchips . | . . . Time . | . . . Total Part Build Rating . | . . . Parts Repaired . | . . . Time . | . . . Parts Recycled . | . . . Recycled Matter . | . . . Retrieved Matter . | . . . Retrieved Components . | . . . Parts Scanalyzed . | . . . Part Schematics Acquired . | . . . Parts Damaged . | . . . Bothacking | -11 -10 -10 ------------ Run | Jun Mat Min Used RIF Installer . | . . . Robots Hacked . | . . . Non-combat . | . . . Combat . | . . . Robot Hacks Applied . | . . . Relay Couplers Released . | . . . Fabnet Peak Effective % . | . . . Robots Rewired . | . . . Allies Hacked . | . . . Hacks Repelled . | . . . Allies | -11 -10 -10 -------- Run | Jun Mat Min Total Allies . | . . . Largest Group . | . . . Highest-Rated Group . | . . . Highest-Rated Ally . | . . . Total Orders . | . . . Ally Attacks . | . . . Total Damage . | . . . Kills . | . . . Allies Corrupted . | . . . Allies Melted . | . . . Intel | -11 -10 -10 ------- Run | Jun Mat Min Robot Analysis Total . | . . . Derelict Logs Recovered 2 | . . 2 Drone Launches . | . . . Drone Recoveries . | . . . Exploration | -11 -10 -10 ------------- Run | Jun Mat Min Turns Passed 1096 | 87 299 710 Spaces Moved 763 | 49 176 538 Core 1 | 1 . . Treads 18 | . 18 . Legs . | . . . Wheels 744 | 48 158 538 Hover . | . . . Flight . | . . . Fastest Speed 50 | 50 90 80 Average Speed 96 | 98 98 96 Slowest Speed 160 | 100 160 100 Overloaded Moves . | . . . Propulsion Burnouts . | . . . Robots Hopped . | . . . Cave-ins Triggered . | . . . Exploration Rate (%) 46 | 5 45 90 Regions Visited 2 Branch Regions 1 Pre-discovered Areas 1 | . . 1 Known Exits Taken . | . . . Unknown Exits Taken 2 | 1 1 . Scrap Searched 1 | . . 1 Spaces Dug . | . . . Terrain Destroyed 18 | . . 18 Melee . | . . . Projectile . | . . . AOE 18 | . . 18 Terrain Rammed . | . . . Walls Destroyed . | . . . Machines Disabled . | . . . Actions | -11 -10 -10 --------- Run | Jun Mat Min Total 954 | 70 240 644 Wait 56 | 2 22 32 Move 761 | 48 175 538 Hop . | . . . Pick Up 11 | 5 2 4 Fast Attach 11 | 7 1 3 Attach 3 | . . 3 Detach . | . . . Swap 10 | 1 5 4 Drop 9 | . 2 7 Fire 92 | 7 33 52 Melee . | . . . Ram . | . . . Kick . | . . . Crush . | . . . Escape Stasis . | . . . Rewire . | . . . Trap 1 | . . 1 Miscellaneous . | . . . Route ------- -11/Junkyard -10/Materials (discovered 2 exits: *Mat / [*Min]) -10/Mines (discovered 2 exits: *Mat x2) History --------- Turn | Location | Event 15 | -11/Junkyard | Discovered new exit (range 16) 88 | -11/Junkyard | Entered Materials 316 | -10/Materials | Build established: Mutant 319 | -10/Materials | Discovered new exit (range 16) 370 | -10/Materials | Discovered new exit (range 12) 387 | -10/Materials | Entered Mines 407 | -10/Mines | Discovered new exit (range 5) 408 | -10/Mines | Assembled infested the area 413 | -10/Mines | Assisted by a Guerilla fighting off Assembled 491 | -10/Mines | YI-UF0 nonchalantly dropped a Grenade Launcher on the ground 518 | -10/Mines | Destroyed YI-UF0 596 | -10/Mines | Identified exit to Materials 619 | -10/Mines | Learned location of Zion (-7) 850 | -10/Mines | Found a hidden stash of uninstalled traps 1053 | -10/Mines | Core integrity fell below 50% 1073 | -10/Mines | Core integrity fell below 20% 1097 | -10/Mines | Destroyed by S-10 Pest with Light Assault Rifle Last Messages --------------- 01027_ Destroyed Aluminum Leg. 01030_ G-47 Trooper destroyed. 01035_ Acquired 4 matter. 01036_ Acquired 1 matter. 01061_ D-53 Grenadier destroyed. 01066_ Lgt. Cannon destroyed. 01067_ Dropped Stasis Trap. 01067_ Installed Stasis Trap. 01070_ S-10 Pest suffers critical hit (Burn). 01071_ Lgt. Ion Engine destroyed. 01072_ S-10 Pest suffers critical hit (Burn). 01072_ Lgt. Ion Engine melted. 01072_ S-10 Pest destroyed. 01076_ K-01 Serf collects debris. 01076_ S-10 Pest destroyed. 01079_ K-01 Serf collects debris. 01092_ Wheel destroyed. 01094_ K-01 Serf collects debris. 01095_ Med. Laser destroyed. 01097_ K-01 Serf collects debris. Map ----- +----------------------------------------------------+ | | | | | | | | | | | | | ????????????????????????????????????? | | ????????????????????????????????????? | | ????????????????????????????????????? | | ????????????????????????????????????? | | ??????????????????????????##????????? | | ?????????????????????????# ??????? | | ????????????????????????? ??????? | | ????????????????????????? ??????? | | ?????????????????###????# ???????? | | ????????????????## #??## ???????? | | ????????????????# ### ???????? | | ????????????????# #???????? | | ????????????????? #???????? | | ?????????????????? ##??????? | | ???????????????????d ##?????? | | #??????????????????? #?????? | | #???????????????????? #?????? | | #?????????????????????# *s #?????? | | ##?????????????????????#%= ####??? | | ####???????????????????#@ k ##?? | | ##??????????????????##^ #?? | | ##?????????????????## % #?? | | #??????????????#### #?? | | #????????????### ##?? | | ##??????????## ###??? | | #?????###### ##????? | | #?????# #?????? | | #?????# ##### #????? | | #### ##?????# #???# #??? | | ????########## #???# ## #?? | | ??????# # #???## #### #?? | | ??????# # #????####??## #?? | | ??????# % # #???????????## ##?? | | ??????# < % #?????????????# ##??? | | ??????# % #??????????????###???? | | ??????# #????????????????????? | | ??????#####%## #????????????????????? | | ????????# #=# #???????????????????? | | ????????# #%## ##???????????????????? | | #???????# ! #????????????????????? | | #???????# ### ##???????????????????? | | #???????# # # #???????????????????? | | #####?### # ##???############????? | | *= ### #????# #????? | +----------------------------------------------------+ Best States ------------- Heat Dissipation 25 Energy Generation 10 Energy Capacity 250 Matter Stores 300 Matter Capacity 300 Sight Range 16 Terrain Scan Density 10 Evasion (%) 44 Recoil Reduction 2 Item Schematics ----------------- None Robot Schematics ------------------ None Fabricated ------------ Nothing Alien Tech Used ----------------- None Achievements -------------- None Challenges ------------ None Game ------ Seed StormArmageddonCycler Manual? 0 Play Time 00:11:55 Cumulative 679.2 hours Start 2023.03.24 @ 21:31:33 End 2023.03.24 @ 21:41:41 Sessions 1 Manual Loads 0 Difficulty Rogue Special Mode None Game No. 221 Rogue 217 Adventurer 4 Explorer 0 Win Type - Total 21 Types 9/2/6/0/0/0/2/2/0 Lore% 87 Gallery% 89 Achievement% 78 Wizard Run 0 Options --------- ASCII 1 Keyboard 0 Movement Arrows Keybinds 0 Fullscreen 1 Font 18/SmallcapsGlow Map View 76x50 Tactical HUD 1 Map Filters NONE Filters NONE Steam 1 RUN: 1840e473-b974-4b4d-981a-84db9af19b78